fUST/lending_fUST_20240902
["ID","MTS","AMOUNT","RATE_DAILY","PERIOD"]
[336876652,1725226243856,-500.0,0.00024931,2]
[336876653,1725226243866,-500.0,0.00024931,2]
[336876654,1725226243876,-500.0,0.00024931,2]
[336876655,1725226243885,-500.0,0.00024931,2]
[336876656,1725226243895,-500.0,0.00024931,2]
[336876657,1725226243906,-500.0,0.00024931,2]
[336876658,1725226243918,-500.0,0.00024931,2]
[336876659,1725226243928,-500.0,0.00024931,2]
[336876660,1725226243938,-500.0,0.00024931,2]
[336876661,1725226243949,-500.0,0.00024931,2]
[336876662,1725226243958,-500.0,0.00024931,2]
[336876663,1725226243967,-500.0,0.00024931,2]
[336876664,1725226243977,-1269.9,0.00024931,2]
[336876665,1725226243988,-500.0,0.00024931,2]
[336876666,1725226243998,-1016.65,0.00024931,2]
[336876667,1725226244008,-1224.0,0.00024931,2]
[336876668,1725226244018,-680.76,0.00024931,2]
[336876669,1725226244028,-500.0,0.00024931,2]
[336876670,1725226244038,-500.0,0.00024931,2]
[336876671,1725226244047,-500.0,0.00024931,2]
[336876672,1725226244057,-500.0,0.00024931,2]
[336876673,1725226244068,-623.83134346,0.00024931,2]
[336876674,1725226244077,-500.0,0.00024931,2]
[336876675,1725226244087,-500.0,0.00024931,2]
[336876676,1725226244096,-500.0,0.00024931,2]
[336876677,1725226244107,-849.12,0.00024931,2]
[336876678,1725226244124,-500.0,0.00024931,2]
[336876679,1725226244133,-680.28,0.00024931,2]
[336876680,1725226244143,-500.0,0.00024931,2]
[336876681,1725226244152,-500.0,0.00024931,2]
[336876682,1725226244162,-500.0,0.00024931,2]
[336876683,1725226244171,-500.0,0.00024931,2]
[336876684,1725226244180,-500.0,0.00024931,2]
[336876685,1725226244189,-500.0,0.00024931,2]
[336876686,1725226244198,-500.0,0.00024931,2]
[336876687,1725226244207,-500.0,0.00024931,2]
[336876688,1725226244216,-500.0,0.00024931,2]
[336876689,1725226244225,-893.12,0.00024931,2]
[336876690,1725226244234,-500.0,0.00024931,2]
[336876691,1725226244243,-500.0,0.00024931,2]
[336876692,1725226244252,-500.0,0.00024931,2]
[336876693,1725226244262,-500.0,0.00024931,2]
[336876694,1725226244270,-500.0,0.00024931,2]
[336876695,1725226244279,-603.14385645,0.00024931,2]
[336876696,1725226244289,-593.46,0.00024931,2]
[336876697,1725226244298,-500.0,0.00024931,2]
[336876698,1725226244308,-500.0,0.00024931,2]
[336876699,1725226244317,-500.0,0.00024931,2]
[336876700,1725226244327,-500.0,0.00024931,2]
[336876701,1725226244336,-500.0,0.00024931,2]
[336876702,1725226244345,-500.0,0.00024931,2]
[336876703,1725226244356,-500.0,0.00024931,2]
[336876704,1725226244365,-3543.29,0.00024931,2]
[336876705,1725226244374,-500.0,0.00024931,2]
[336876706,1725226244383,-575.2,0.00024931,2]
[336876707,1725226244393,-500.0,0.00024931,2]
[336876708,1725226244402,-529.22,0.00024931,2]
[336876709,1725226244411,-500.0,0.00024931,2]
[336876710,1725226244420,-500.0,0.00024931,2]
[336876711,1725226244429,-500.0,0.00024931,2]
[336876712,1725226244438,-500.0,0.00024931,2]
[336876713,1725226244447,-500.0,0.00024931,2]
[336876714,1725226244455,-1334.23,0.00024931,2]
[336876715,1725226244465,-500.0,0.00024931,2]
[336876716,1725226244473,-525.89767065,0.00024931,2]
[336876717,1725226244482,-500.0,0.00024931,2]
[336876718,1725226244492,-567.34,0.00024931,2]
[336876719,1725226244501,-635.7,0.00024931,2]
[336876720,1725226244510,-500.0,0.00024931,2]
[336876721,1725226244519,-500.0,0.00024931,2]
[336876722,1725226244528,-500.0,0.00024931,2]
[336876723,1725226244537,-757.66,0.00024931,2]
[336876724,1725226244546,-500.0,0.00024931,2]
[336876725,1725226244555,-609.48,0.00024931,2]
[336876726,1725226244564,-500.0,0.00024931,2]
[336876727,1725226244574,-554.71,0.00024931,2]
[336876728,1725226244583,-500.0,0.00024931,2]
[336876729,1725226244592,-500.0,0.00024931,2]
[336876730,1725226244601,-500.0,0.00024931,2]
[336876731,1725226244612,-500.0,0.00024931,2]
[336876732,1725226244621,-500.0,0.00024931,2]
[336876733,1725226244631,-500.0,0.00024931,2]
[336876734,1725226244640,-611.94,0.00024931,2]
[336876735,1725226244649,-500.0,0.00024931,2]
[336876736,1725226244658,-500.0,0.00024931,2]
[336876737,1725226244668,-1077.43,0.00024931,2]
[336876738,1725226244677,-500.0,0.00024931,2]
[336876739,1725226244687,-500.0,0.00024931,2]
[336876740,1725226244696,-505.55047737,0.00024931,2]
[336876741,1725226244705,-872.16,0.00024931,2]
[336876742,1725226244714,-791.21,0.00024931,2]
[336876743,1725226244724,-500.0,0.00024931,2]
[336876744,1725226244733,-1565.62,0.00024931,2]
[336876745,1725226244743,-1014.21,0.00024931,2]
[336876746,1725226244752,-500.0,0.00024931,2]
[336876747,1725226244761,-500.0,0.00024931,2]
[336876748,1725226244771,-500.0,0.00024931,2]
[336876749,1725226244903,-2063.97,0.00024931,2]
[336876750,1725226244917,-500.0,0.00024931,2]
[336876751,1725226244926,-500.0,0.00024931,2]
[336876752,1725226244936,-708.37,0.00024931,2]
[336876753,1725226244946,-500.0,0.00024931,2]
[336876754,1725226244955,-1022.85,0.00024931,2]
[336876755,1725226244965,-681.02,0.00024931,2]
[336876756,1725226244974,-500.0,0.00024931,2]
[336876757,1725226244985,-500.0,0.00024931,2]
[336876758,1725226244995,-961.99,0.00024931,2]
[336876759,1725226245005,-500.0,0.00024931,2]
[336876760,1725226245015,-500.0,0.00024931,2]
[336876761,1725226245025,-500.0,0.00024931,2]
[336876762,1725226245034,-2217.34,0.00024931,2]
[336876763,1725226245044,-500.0,0.00024931,2]
[336876764,1725226245053,-500.0,0.00024931,2]
[336876765,1725226245062,-825.08,0.00024931,2]
[336876766,1725226245072,-500.0,0.00024931,2]
[336876767,1725226245081,-500.0,0.00024931,2]
[336876768,1725226245091,-889.21,0.00024931,2]
[336876769,1725226245100,-500.0,0.00024931,2]
[336876770,1725226245113,-421.55910723,0.00024931,2]
[336876773,1725226245454,-500.0,0.00024657,2]
[336876774,1725226245463,-78.44089277,0.00024931,2]
[336876775,1725226245473,-500.0,0.00024931,2]
[336876776,1725226245482,-500.0,0.00024931,2]
[336876777,1725226245491,-500.0,0.00024931,2]
[336876778,1725226245501,-500.0,0.00024931,2]
[336876779,1725226245510,-1335.01,0.00024931,2]
[336876780,1725226245519,-500.0,0.00024931,2]
[336876781,1725226245527,-500.0,0.00024931,2]
[336876782,1725226245537,-500.0,0.00024931,2]
[336876783,1725226245546,-500.0,0.00024931,2]
[336876785,1725226245555,-500.0,0.00024931,2]
[336876786,1725226245564,-537.78,0.00024931,2]
[336876787,1725226245573,-500.0,0.00024931,2]
[336876788,1725226245582,-1976.8,0.00024931,2]
[336876789,1725226245591,-1624.6,0.00024931,2]
[336876790,1725226245601,-1996.24,0.00024931,2]
[336876791,1725226245611,-500.0,0.00024931,2]
[336876792,1725226245620,-500.0,0.00024931,2]
[336876793,1725226245629,-500.0,0.00024931,2]
[336876794,1725226245639,-708.43,0.00024931,2]
[336876795,1725226245648,-500.0,0.00024931,2]
[336876796,1725226245657,-711.02,0.00024931,2]
[336876797,1725226245666,-500.0,0.00024931,2]
[336876798,1725226245676,-1825.36,0.00024931,2]
[336876799,1725226245685,-500.0,0.00024931,2]
[336876800,1725226245694,-500.0,0.00024931,2]
[336876801,1725226245703,-500.0,0.00024931,2]
[336876802,1725226245713,-500.0,0.00024931,2]
[336876803,1725226245723,-1721.83,0.00024931,2]
[336876804,1725226245733,-500.0,0.00024931,2]
[336876805,1725226245742,-619.44,0.00024931,2]
[336876806,1725226245752,-500.0,0.00024931,2]
[336876807,1725226245761,-500.0,0.00024931,2]
[336876808,1725226245771,-500.0,0.00024931,2]
[336876809,1725226245780,-500.0,0.00024931,2]
[336876810,1725226245789,-500.0,0.00024931,2]
[336876811,1725226245799,-604.4,0.00024931,2]
[336876812,1725226245808,-500.0,0.00024931,2]
[336876813,1725226245817,-665.91,0.00024931,2]
[336876814,1725226245826,-2926.09,0.00024931,2]
[336876815,1725226245836,-1432.57,0.00024931,2]
[336876816,1725226245845,-766.55,0.00024931,2]
[336876817,1725226245855,-500.0,0.00024931,2]
[336876818,1725226245864,-2728.41,0.00024931,2]
[336876819,1725226245873,-14085.44,0.00024931,2]
[336876820,1725226245883,-1001.59,0.00024931,2]
[336876821,1725226245892,-500.0,0.00024931,2]
[336876822,1725226245902,-500.0,0.00024931,2]
[336876823,1725226245915,-1294.82,0.00024931,2]
[336876824,1725226245924,-500.0,0.00024931,2]
[336876825,1725226245934,-500.0,0.00024931,2]
[336876826,1725226245944,-1786.99,0.00024931,2]
[336876827,1725226245954,-500.0,0.00024931,2]
[336876828,1725226245964,-500.0,0.00024931,2]
[336876829,1725226245973,-695.45,0.00024931,2]
[336876830,1725226245983,-500.0,0.00024931,2]
[336876831,1725226245995,-2109.68,0.00024931,2]
[336876832,1725226246004,-500.0,0.00024931,2]
[336876833,1725226246014,-500.0,0.00024931,2]
[336876834,1725226246023,-2913.33,0.00024931,2]
[336876835,1725226246035,-500.0,0.00024931,2]
[336876836,1725226246045,-2161.85,0.00024931,2]
[336876837,1725226246056,-964.95,0.00024931,2]
[336876838,1725226246065,-1601.89,0.00024931,2]
[336876839,1725226246075,-500.0,0.00024931,2]
[336876840,1725226246085,-500.0,0.00024931,2]
[336876841,1725226246094,-500.0,0.00024931,2]
[336876842,1725226246105,-692.8,0.00024931,2]
[336876843,1725226246114,-619.82,0.00024931,2]
[336876844,1725226246123,-1551.41,0.00024931,2]
[336876845,1725226246132,-500.0,0.00024931,2]
[336876846,1725226246142,-500.0,0.00024931,2]
[336876847,1725226246150,-733.82,0.00024931,2]
[336876848,1725226246159,-906.63,0.00024931,2]
[336876849,1725226246168,-654.15,0.00024931,2]
[336876850,1725226246177,-1204.36,0.00024931,2]
[336876851,1725226246187,-500.0,0.00024931,2]
[336876852,1725226246196,-500.0,0.00024931,2]
[336876853,1725226246205,-1404.7,0.00024931,2]
[336876854,1725226246214,-1184.5,0.00024931,2]
[336876855,1725226246223,-391.47411515,0.00024931,2]
[336876856,1725226246233,-500.0,0.00024931,2]
[336876857,1725226246242,-500.0,0.00024931,2]
[336876858,1725226246253,-500.0,0.00024931,2]
[336876859,1725226246263,-500.0,0.00024931,2]
[336876860,1725226246272,-987.85,0.00024931,2]
[336876861,1725226246281,-1000.56,0.00024931,2]
[336876862,1725226246291,-500.0,0.00024931,2]
[336876863,1725226246300,-1184.15,0.00024931,2]
[336876864,1725226246310,-1671.06,0.00024931,2]
[336876865,1725226246319,-1551.8,0.00024931,2]
[336876866,1725226246327,-614.28,0.00024931,2]
[336876867,1725226246336,-500.0,0.00024931,2]
[336876868,1725226246345,-1585.07,0.00024931,2]
[336876869,1725226246355,-727.4,0.00024931,2]
[336876870,1725226246365,-500.0,0.00024931,2]
[336876871,1725226246375,-500.0,0.00024931,2]
[336876872,1725226246384,-1030.76,0.00024931,2]
[336876873,1725226246394,-2276.03,0.00024931,2]
[336876874,1725226246403,-1367.8,0.00024931,2]
[336876875,1725226246413,-5321.54,0.00024931,2]
[336876876,1725226246422,-500.0,0.00024931,2]
[336876877,1725226246431,-523.07,0.00024931,2]
[336876878,1725226246440,-1522.6,0.00024931,2]
[336876879,1725226246450,-682.63,0.00024931,2]
[336876880,1725226246459,-500.0,0.00024931,2]
[336876881,1725226246469,-553.68,0.00024931,2]
[336876882,1725226246478,-591.13188001,0.00024931,2]
[336876883,1725226246487,-1562.1,0.00024931,2]
[336876884,1725226246497,-7593.31,0.00024931,2]
[336876885,1725226246507,-502.33822911,0.00024931,2]
[336876886,1725226246516,-667.92,0.00024931,2]
[336876887,1725226246525,-552.48,0.00024931,2]
[336876888,1725226246535,-1399.77,0.00024931,2]
[336876889,1725226246544,-1400.27,0.00024931,2]
[336876890,1725226246553,-1020.58,0.00024931,2]
[336876891,1725226246563,-1619.64,0.00024931,2]
[336876892,1725226246572,-500.0,0.00024931,2]
[336876893,1725226246584,-500.0,0.00024931,2]
[336876894,1725226246593,-500.0,0.00024931,2]
[336876896,1725226246602,-1839.2,0.00024931,2]
[336876898,1725226246612,-500.0,0.00024931,2]
[336876900,1725226246622,-3152.25,0.00024931,2]
[336876901,1725226246631,-500.0,0.00024931,2]
[336876903,1725226246640,-500.0,0.00024931,2]
[336876905,1725226246650,-500.0,0.00024931,2]
[336876906,1725226246659,-1098.72,0.00024931,2]
[336876907,1725226246669,-2245.8,0.00024931,2]
[336876908,1725226246678,-500.0,0.00024931,2]
[336876909,1725226246687,-500.0,0.00024931,2]
[336876910,1725226246697,-563.37,0.00024931,2]
[336876911,1725226246706,-549.0,0.00024931,2]
[336876912,1725226246716,-2005.8,0.00024931,2]
[336876913,1725226246726,-1058.46,0.00024931,2]
[336876914,1725226246735,-507.89,0.00024931,2]
[336876915,1725226246744,-500.0,0.00024931,2]
[336876916,1725226246754,-1569.18,0.00024931,2]
[336876917,1725226246764,-500.0,0.00024931,2]
[336876918,1725226246774,-1293.51,0.00024931,2]
[336876919,1725226246784,-500.0,0.00024973,2]
[336876920,1725226246794,-171.0,0.00025,2]
[336876921,1725226246804,-25130.38802756,0.00025,2]
[336876922,1725226246813,-156.0,0.00025,2]
[336876923,1725226246823,-153.0,0.00025025,2]
[336876924,1725226246832,-209.4109938,0.00025025,2]
[336876925,1725226246842,-153.0,0.00025025,2]
[336876926,1725226246851,-153.0,0.00025025,2]
[336876927,1725226246862,-153.0,0.00025025,2]
[336876928,1725226246871,-153.0,0.00025025,2]
[336876929,1725226246881,-153.0,0.00025025,2]
[336876930,1725226246891,-182.34904717,0.00025105,2]
[336876931,1725226246901,-420.0,0.00025109,2]
[336876933,1725226246915,-157.68232517,0.00025134,3]
[336876935,1725226246924,-819.3959652,0.00025144,2]
[336876937,1725226246934,-409.6979826,0.00025144,2]
[336876938,1725226246943,-409.6979826,0.00025144,2]
[336876939,1725226246954,-409.6979826,0.00025144,2]
[336876940,1725226246964,-409.6979826,0.00025144,2]
[336876942,1725226246974,-409.6979826,0.00025144,2]
[336876944,1725226246983,-630.72930068,0.00025195,3]
[336876945,1725226246998,-3000.0,0.000252,2]
[336876947,1725226247008,-1084.84,0.00025204,2]
[336876949,1725226247017,-1084.84,0.00025204,2]
[336876951,1725226247027,-1084.84,0.00025204,2]
[336876953,1725226247037,-1084.84,0.00025204,2]
[336876955,1725226247047,-1084.84,0.00025204,2]
[336876957,1725226247057,-500.0,0.00025205,2]
[336876959,1725226247066,-500.0,0.00025205,2]
[336876960,1725226247075,-500.0,0.00025205,2]
[336876962,1725226247085,-725.08,0.00025205,2]
[336876964,1725226247095,-500.0,0.00025205,2]
[336876966,1725226247105,-500.0,0.00025205,2]
[336876967,1725226247114,-529.85471772,0.00025205,2]
[336876968,1725226247124,-500.0,0.00025205,2]
[336876969,1725226247135,-500.0,0.00025205,2]
[336876971,1725226247145,-500.0,0.00025205,2]
[336876973,1725226247155,-500.0,0.00025205,2]
[336876974,1725226247165,-500.0,0.00025205,2]
[336876975,1725226247174,-500.0,0.00025205,2]
[336876976,1725226247184,-500.0,0.00025205,2]
[336876977,1725226247193,-500.0,0.00025205,2]
[336876978,1725226247202,-500.0,0.00025205,2]
[336876979,1725226247212,-500.0,0.00025205,2]
[336876980,1725226247222,-500.0,0.00025205,2]
[336876981,1725226247232,-500.0,0.00025205,2]
[336876982,1725226247243,-620.67,0.00025205,2]
[336876983,1725226247253,-651.28,0.00025205,2]
[336876984,1725226247262,-500.0,0.00025205,2]
[336876985,1725226247272,-370.25705107,0.00025205,2]
[336876986,1725226247281,-614.88,0.00025205,2]
[336876987,1725226247291,-500.0,0.00025205,2]
[336876988,1725226247301,-522.95,0.00025205,2]
[336876989,1725226247310,-500.0,0.00025205,2]
[336876990,1725226247319,-500.0,0.00025205,2]
[336876991,1725226247329,-500.0,0.00025205,2]
[336876992,1725226247339,-500.0,0.00025205,2]
[336876993,1725226247348,-500.0,0.00025205,2]
[336876994,1725226247359,-500.0,0.00025205,2]
[336876995,1725226247373,-500.0,0.00025205,2]
[336876996,1725226247382,-500.0,0.00025205,2]
[336876997,1725226247392,-500.0,0.00025205,2]
[336876998,1725226247401,-500.0,0.00025205,2]
[336876999,1725226247540,-500.0,0.00025205,2]
[336877000,1725226247551,-1269.9,0.00025205,2]
[336877001,1725226247560,-500.0,0.00025205,2]
[336877002,1725226247569,-1016.65,0.00025205,2]
[336877003,1725226247578,-1224.0,0.00025205,2]
[336877004,1725226247588,-680.76,0.00025205,2]
[336877005,1725226247597,-500.0,0.00025205,2]
[336877006,1725226247609,-500.0,0.00025205,2]
[336877007,1725226247621,-500.0,0.00025205,2]
[336877008,1725226247631,-500.0,0.00025205,2]
[336877009,1725226247640,-500.0,0.00025205,2]
[336877010,1725226247649,-189.12701823,0.00025205,2]
[336877011,1725226247854,-155.11,0.00024647,3]
[336877012,1725226247865,-500.0,0.00024657,2]
[336877013,1725226247875,-409.6979826,0.00025144,2]
[336877014,1725226247884,-659.99298177,0.00025205,2]
[336877015,1725226247893,-354.09663816,0.00025205,2]
[336877016,1725226247904,-680.28,0.00025205,2]
[336877017,1725226247918,-500.0,0.00025205,2]
[336877018,1725226247927,-500.0,0.00025205,2]
[336877019,1725226247937,-500.0,0.00025205,2]
[336877020,1725226247946,-500.0,0.00025205,2]
[336877021,1725226247958,-500.0,0.00025205,2]
[336877022,1725226247967,-500.0,0.00025205,2]
[336877023,1725226247976,-500.0,0.00025205,2]
[336877024,1725226247986,-893.12,0.00025205,2]
[336877025,1725226247995,-500.0,0.00025205,2]
[336877026,1725226248004,-500.0,0.00025205,2]
[336877027,1725226248014,-500.0,0.00025205,2]
[336877028,1725226248023,-500.0,0.00025205,2]
[336877029,1725226248033,-593.46,0.00025205,2]
[336877030,1725226248042,-500.0,0.00025205,2]
[336877031,1725226248051,-500.0,0.00025205,2]
[336877032,1725226248061,-500.0,0.00025205,2]
[336877033,1725226248071,-500.0,0.00025205,2]
[336877034,1725226248080,-500.0,0.00025205,2]
[336877035,1725226248089,-3543.29,0.00025205,2]
[336877036,1725226248098,-151.0,0.00025205,7]
[336877037,1725226248108,-282.0,0.00025205,7]
[336877038,1725226248118,-500.0,0.00025205,2]
[336877039,1725226248128,-575.2,0.00025205,2]
[336877040,1725226248137,-500.0,0.00025205,2]
[336877041,1725226248147,-529.22,0.00025205,2]
[336877042,1725226248156,-500.0,0.00025205,2]
[336877043,1725226248165,-1334.23,0.00025205,2]
[336877044,1725226248179,-500.0,0.00025205,2]
[336877045,1725226248189,-500.0,0.00025205,2]
[336877046,1725226248198,-567.34,0.00025205,2]
[336877047,1725226248208,-635.7,0.00025205,2]
[336877048,1725226248217,-500.0,0.00025205,2]
[336877049,1725226248226,-500.0,0.00025205,2]
[336877050,1725226248236,-757.66,0.00025205,2]
[336877051,1725226248245,-500.0,0.00025205,2]
[336877052,1725226248254,-609.48,0.00025205,2]
[336877053,1725226248263,-645.80779385,0.00025205,2]
[336877054,1725226248273,-554.71,0.00025205,2]
[336877055,1725226248283,-500.0,0.00025205,2]
[336877056,1725226248292,-500.0,0.00025205,2]
[336877057,1725226248301,-500.0,0.00025205,2]
[336877058,1725226248310,-500.0,0.00025205,2]
[336877059,1725226248319,-500.0,0.00025205,2]
[336877060,1725226248328,-714.441282,0.00025205,7]
[336877061,1725226248337,-173.01413058,0.00025205,7]
[336877062,1725226248609,-500.0,0.00024657,2]
[336877063,1725226248619,-6684.61013258,0.00024921,3]
[336877067,1725226606534,161.749355,0.00014247,2]
[336877070,1725226987646,-159.568609,0.00023423,2]
[336877071,1725226987678,-300.0,0.00023632,2]
[336877072,1725226987699,-159.568609,0.00023633,2]
[336877073,1725226987716,-300.0,0.00023633,2]
[336877074,1725226987728,-20354.862782,0.00023633,2]
[336877075,1725227233153,-573.9111586,0.00022,2]
[336877076,1725227237098,161.503363,0.00014247,2]
[336877078,1725227250115,-242.9388414,0.00022,2]
[336877079,1725227250141,-70.62639701,0.00023001,2]
[336877128,1725227437912,-300.0,0.00023,2]
[336877130,1725227437922,-26100.21332989,0.00023001,2]
[336877132,1725227437931,-168.690343,0.00023159,2]
[336877134,1725227437940,-1433.34794932,0.0002326,2]
[336877136,1725227437949,-24900.0,0.00023345,2]
[336877137,1725227437959,-168.690343,0.0002336,2]
[336877139,1725227437969,-168.690343,0.00023561,2]
[336877141,1725227437978,-168.690343,0.00023763,2]
[336877143,1725227437988,-644.32559,0.00023836,2]
[336877145,1725227437997,-168.690343,0.00023964,2]
[336877147,1725227438006,-168.690343,0.00024165,2]
[336877149,1725227438016,-204.1204487,0.00024204,2]
[336877151,1725227438025,-153.0,0.00024322,2]
[336877153,1725227438035,-415.886254,0.00024322,2]
[336877155,1725227438044,-207.943127,0.00024322,2]
[336877157,1725227438053,-247.6931525,0.00024322,2]
[336877159,1725227438063,-168.690343,0.00024366,2]
[336877161,1725227438072,-209.2435491,0.00024378,2]
[336877163,1725227438081,-153.0,0.00024378,2]
[336877165,1725227438091,-500.0,0.00024383,2]
[336877167,1725227438100,-271.36061238,0.00024383,2]
[336877169,1725227438109,-4556.88966201,0.00024384,2]
[336877171,1725227438118,-153.0,0.000244,2]
[336877173,1725227438127,-153.0,0.000244,2]
[336877175,1725227438137,-25454.62320186,0.00024557,2]
[336877177,1725227438146,-1102.04516336,0.00024557,2]
[336877179,1725227438155,-496.44388232,0.00024581,2]
[336877181,1725227438165,-153.0,0.000246,2]
[336877183,1725227438174,-1102.04516332,0.00024626,2]
[336877185,1725227438183,-1316.3816584,0.00024647,3]
[336877187,1725227438192,-1796.15253315,0.00024657,11]
[336877188,1725227438202,-472.99812073,0.00024657,2]
[336877189,1725227438211,-500.0,0.00024657,2]
[336877190,1725227438220,-500.0,0.00024657,2]
[336877191,1725227438230,-500.0,0.00024657,2]
[336877192,1725227438239,-500.0,0.00024657,2]
[336877194,1725227438249,-500.0,0.00024657,2]
[336877195,1725227438258,-500.0,0.00024657,2]
[336877197,1725227438268,-500.0,0.00024657,2]
[336877199,1725227438277,-500.0,0.00024657,2]
[336877201,1725227438287,-500.0,0.00024657,2]
[336877202,1725227438297,-500.0,0.00024657,2]
[336877203,1725227438306,-500.0,0.00024657,2]
[336877204,1725227438316,-500.0,0.00024657,2]
[336877205,1725227438326,-500.0,0.00024657,2]
[336877206,1725227438335,-530.90616032,0.00024657,2]
[336877207,1725227438344,-631.00427614,0.00024657,2]
[336877208,1725227438354,-623.83134346,0.00024657,2]
[336877209,1725227438363,-500.0,0.00024657,2]
[336877210,1725227438374,-500.0,0.00024657,2]
[336877211,1725227438384,-500.0,0.00024657,2]
[336877212,1725227438394,-500.0,0.00024657,2]
[336877213,1725227438403,-500.0,0.00024657,2]
[336877214,1725227438413,-500.0,0.00024657,2]
[336877215,1725227438422,-1272.27,0.00024657,2]
[336877217,1725227438432,-500.0,0.00024657,2]
[336877218,1725227438441,-592.19,0.00024657,2]
[336877219,1725227438453,-500.0,0.00024657,2]
[336877220,1725227438463,-500.0,0.00024657,2]
[336877222,1725227438473,-500.0,0.00024657,2]
[336877224,1725227438483,-500.0,0.00024657,2]
[336877226,1725227438492,-500.0,0.00024657,2]
[336877227,1725227438502,-500.0,0.00024657,2]
[336877228,1725227438511,-500.0,0.00024657,2]
[336877230,1725227438522,-500.0,0.00024657,2]
[336877232,1725227438532,-500.0,0.00024657,2]
[336877233,1725227438544,-500.69716664,0.00024657,2]
[336877234,1725227438554,-500.0,0.00024657,2]
[336877235,1725227438563,-442.89816768,0.00024657,2]
[336877236,1725227438578,-500.0,0.00024657,2]
[336877237,1725227438593,-933.41,0.00024657,2]
[336877238,1725227438608,-500.0,0.00024657,2]
[336877239,1725227438620,-500.0,0.00024657,2]
[336877240,1725227438632,-500.0,0.00024657,2]
[336877241,1725227438644,-681.8,0.00024657,2]
[336877242,1725227438658,-500.0,0.00024657,2]
[336877243,1725227438672,-500.0,0.00024657,2]
[336877244,1725227438686,-500.0,0.00024657,2]
[336877245,1725227438700,-500.0,0.00024657,2]
[336877246,1725227438717,-525.89767065,0.00024657,2]
[336877247,1725227438730,-500.0,0.00024657,2]
[336877248,1725227438744,-500.0,0.00024657,2]
[336877249,1725227438756,-500.0,0.00024657,2]
[336877250,1725227438770,-500.0,0.00024657,2]
[336877251,1725227438785,-500.0,0.00024657,2]
[336877252,1725227438799,-500.0,0.00024657,2]
[336877253,1725227438811,-500.0,0.00024657,2]
[336877254,1725227438823,-500.0,0.00024657,2]
[336877255,1725227438838,-500.0,0.00024657,2]
[336877256,1725227438852,-500.0,0.00024657,2]
[336877257,1725227438865,-500.0,0.00024657,2]
[336877258,1725227438877,-399.17452007,0.00024657,2]
[336877259,1725227438891,-553.51,0.00024657,2]
[336877260,1725227438904,-504.4578658,0.00024657,2]
[336877261,1725227438918,-500.0,0.00024657,2]
[336877262,1725227438931,-269.24649168,0.00024657,2]
[336877263,1725227438944,-500.0,0.00024657,2]
[336877264,1725227438955,-500.0,0.00024657,2]
[336877265,1725227438965,-500.0,0.00024657,2]
[336877266,1725227438976,-500.0,0.00024657,2]
[336877267,1725227438989,-681.32,0.00024657,2]
[336877268,1725227439003,-500.0,0.00024657,2]
[336877269,1725227439015,-500.0,0.00024657,2]